Cogmind - Beta 13 @@@ ROGUE MODE // 2024.04.02 @ 17:56:50 Player: Cyurio Result: Destroyed by S-27 Virus with Autogun Performance ------------- Evolutions (4) 2000 Regions Visited (10) 2000 Robots Destroyed (44) 220 Value Destroyed (1375) 1375 Prototype IDs (23) 460 Alien Tech Used (0) 0 Bonus (800) 800 TOTAL SCORE: 6855 Bonus ------- Entered DSFs 500 Aligned with FarCom 300 Cogmind --------- Core Integrity 0/850 Matter 270/300 Energy 42/150 System Corruption 0% Temperature Cool (0) Movement Core (250) Ox4 Location -6/Factory Parts ------- > --- POWER (2) -------- Micro Nuclear Core > --- PROPULSION (5) --- (None) > --- UTILITY (4) ------ Advanced Melee Analysis Suite Force Field > --- WEAPON (4) ------- (None) > --- INVENTORY (5) ---- Advanced Weight Redist. System Recoil Stabilizer Microactuators Microactuators Peak State ------------ > --- POWER ------------ Improved Ion Engine > --- PROPULSION ------- Improved Titanium Leg Light Armored Exoskeleton Light Armored Exoskeleton > --- UTILITY ---------- Medium Storage Unit Improved Targeting Computer Microactuators Graphene Brace > --- WEAPON ----------- Maul Maul Maul Maul > --- INVENTORY -------- Advanced Weight Redist. System Recoil Stabilizer Microactuators [Rating: 45] Favorites ----------- Power Light Nuclear Core Engine Ion Engine Power Core Light Nuclear Core Propulsion Aluminum Leg Leg Aluminum Leg Utility Medium Storage Unit Device Tractor Beam Storage Medium Storage Unit Processor Improved Targeting Computer Protection Light Armor Plating Weapon Minigun Ballistic Gun Minigun Ballistic Cannon Light Cannon Launcher Missile Launcher Impact Weapon Maul Build | -11 -10 -10 -9 -9 -9 -8 -8 -7 -7 -6 ------- Run | Yrd Mat Min Mat Min Exi Min Mat Fac DSF Fac Slots Evolved 8 | . . . 2 . . . 2 2 . 2 Power 1 | . . . . . . . . 1 . . Propulsion 3 | . . . 1 . . . 1 . . 1 Utility 2 | . . . 1 . . . . 1 . . Weapon 2 | . . . . . . . 1 . . 1 Parts Attached 54 | . 4 5 7 . . . 19 1 7 11 Power 7 | . . 1 2 . . . 2 . . 2 Engine 3 | . . 1 1 . . . . . . 1 Core 4 | . . . 1 . . . 2 . . 1 Reactor . | . . . . . . . . . . . Propulsion 21 | . 2 2 1 . . . 9 . 5 2 Treads . | . . . . . . . . . . . Leg 21 | . 2 2 1 . . . 9 . 5 2 Wheel . | . . . . . . . . . . . Hover . | . . . . . . . . . . . Flight . | . . . . . . . . . . . Utility 11 | . 1 1 3 . . . 1 1 1 3 Device 5 | . 1 . . . . . 1 1 . 2 Storage 2 | . . . 1 . . . . . 1 . Processor 3 | . . . 2 . . . . . . 1 Hackware . | . . . . . . . . . . . Protection 1 | . . 1 . . . . . . . . Artifact . | . . . . . . . . . . . Weapon 15 | . 1 1 1 . . . 7 . 1 4 Energy Gun . | . . . . . . . . . . . Energy Cannon . | . . . . . . . . . . . Ballistic Gun 7 | . . 1 1 . . . 5 . . . Ballistic Cannon 2 | . 1 . . . . . 1 . . . Launcher 2 | . . . . . . . 1 . 1 . Special Weapon . | . . . . . . . . . . . Impact Weapon 4 | . . . . . . . . . . 4 Slashing Weapon . | . . . . . . . . . . . Piercing Weapon . | . . . . . . . . . . . Special Melee Weapon . | . . . . . . . . . . . Unidentified Prototypes . | . . . . . . . . . . . Parts Lost 29 | . . 2 2 . . . 18 . 2 5 Power 6 | . . 1 1 . . . 3 . . 1 Propulsion 12 | . . . . . . . 8 . 2 2 Utility 4 | . . 1 1 . . . 1 . . 1 Weapon 7 | . . . . . . . 6 . . 1 Highest Loss Streak 10 | . . 1 1 . . . 10 . 1 2 To Critical Strikes . | . . . . . . . . . . . Average Slot Usage (%) 85 | . 96 100 96 100 100 100 89 27 32 45 Engine 4 | . 14 14 1 . . . . . . . Core 4 | . . . 8 11 11 11 8 . . . Leg 27 | . 28 28 33 33 33 33 32 7 9 15 Device 5 | . 11 9 . . . . 1 4 7 7 Storage 10 | . 14 14 11 11 11 11 9 7 5 4 Processor 8 | . . . 10 22 22 22 15 7 7 5 Protection 1 | . . 4 9 . . . . . . . Ballistic Gun 12 | . 22 14 11 11 11 11 15 . . . Ballistic Cannon 7 | . 5 14 11 11 11 11 6 . . . Naked Turns 63 | . . . . . . . . . . 63 Heaviest Build 32 | 14 16 17 24 21 21 21 31 11 17 32 Greatest Support 80 | 20 20 20 30 30 30 30 47 10 60 80 Greatest Overweight (x) 4 | . . . . . . . 1 1 3 4 Average Overweight (x) . | . . . . . . . . . . . Largest Inventory Capacity 10 | 8 8 8 10 10 10 10 10 10 10 10 Average Capacity 8 | 8 8 8 8 10 10 10 10 10 9 9 Most Carried 10 | 5 8 8 8 8 8 8 10 5 9 6 Average Carried 7 | 4 7 7 7 8 8 8 7 4 5 4 Final Capacity 10 | 8 8 8 10 10 10 10 10 10 10 5 Final Carried 8 | 4 8 8 8 8 8 8 5 4 8 4 Class Distribution -------------------- 82% | Mutant 12% | Skirmisher 4% | Gunner Dominant Class ---------------- Mutant | -10/Materials Mutant | -10/Mines Mutant | -9/Materials Mutant | -9/Mines Mutant | -9/Exiles Mutant | -8/Mines Skirmisher | -8/Materials Mutant | -7/Factory Mutant | -7/DSF Mutant | -6/Factory Resources | -11 -10 -10 -9 -9 -9 -8 -8 -7 -7 -6 ----------- Run | Yrd Mat Min Mat Min Exi Min Mat Fac DSF Fac Matter Collected 1465 | 189 234 182 40 . . 11 448 . 119 242 Remotely 294 | . 181 113 . . . . . . . . Salvage Created 1706 | . 355 200 139 . . 11 671 . 38 292 Parts 95 | . 32 11 9 . . 3 31 . 2 7 Haulers Intercepted 3 | . 1 . 1 . . . 1 . . . Recyclers Shooed 1 | . 1 . . . . . . . . . Parts Field Recycled . | . . . . . . . . . . . Retrieved Matter . | . . . . . . . . . . . Parts Self-Destructed . | . . . . . . . . . . . Prevented . | . . . . . . . . . . . Kills | -11 -10 -10 -9 -9 -9 -8 -8 -7 -7 -6 ------- Run | Yrd Mat Min Mat Min Exi Min Mat Fac DSF Fac Combat Hostiles Destroyed 35 | . 12 5 3 . . . 12 . 1 2 Guns 23 | . 10 4 2 . . . 7 . . . Cannons 7 | . 2 1 1 . . . 3 . . . AOE 3 | . . . . . . . 2 . 1 . Classes Destroyed 11 | . 3 1 1 . . . 3 . . 3 Worker 1 | . . . . . . . . . . 1 Builder 1 | . . . . . . . . . . 1 Tunneler 2 | . . 1 . . . 1 . . . . Hauler 3 | . 1 . 1 . . . 1 . . . Recycler 2 | . . . . . . . 1 . . 1 Swarmer 7 | . 6 . 1 . . . . . . . Grunt 19 | . 6 5 . . . . 7 . 1 . Brawler 1 | . . . . . . . 1 . . . Sentry 5 | . . . 2 . . . 3 . . . Hunter 2 | . . . . . . . . . . 2 Heavy 1 | . . . . . . . 1 . . . Best Kill Streak 5 | . 3 3 2 . . 1 5 . 1 4 Combat Bots Only 5 | . 3 3 1 . . . 5 . 1 1 Max Kills in Single Turn 2 | . 1 2 1 . . 1 2 . 1 1 Gunslinging . | . . . . . . . . . . . Exploded 2 | . . . . . . . 2 . 1 . Melee . | . . . . . . . . . . . Uniques/NPCs Destroyed . | . . . . . . . . . . . Combat | -11 -10 -10 -9 -9 -9 -8 -8 -7 -7 -6 -------- Run | Yrd Mat Min Mat Min Exi Min Mat Fac DSF Fac Hostile Shots Fired 458 | . 57 38 25 . . . 159 . 27 152 Missed 144 | . 20 12 3 . . . 51 . 7 51 Damage Taken 5868 | . 405 346 311 . . . 2012 . 462 2332 Core 1531 | . 83 47 88 . . . 286 . 177 850 Absorbed by Shields 37 | . . . . . . . . . . 37 Core Remaining (%) 69 | 100 . 48 . . . 78 48 . 74 . Volleys Fired 113 | . 29 20 18 . . 1 44 . 1 . Largest 3 | . 2 2 2 . . 2 3 . 1 . Hottest 85 | . 55 58 60 . . 60 85 . 36 . Shots Fired 233 | . 58 40 36 . . 2 96 . 1 . Gun 166 | . 49 20 18 . . 1 78 . . . Cannon 65 | . 9 20 18 . . 1 17 . . . Launcher 2 | . . . . . . . 1 . 1 . Special . | . . . . . . . . . . . Kinetic 231 | . 58 40 36 . . 2 95 . . . Thermal . | . . . . . . . . . . . Explosive 2 | . . . . . . . 1 . 1 . Electromagnetic . | . . . . . . . . . . . Robot Hit Streak 22 | . 9 6 11 . . 5 22 . . . Robot Miss Streak 3 | . 3 2 2 . . . 2 . . . Penetration Max . | . . . . . . . . . . . Secondary Targets 2 | . . . . . . . 2 . . . Max Gunslinging Chain 1 | . . . . . . . 1 . . . Shots Hit Robots 171 | . 36 22 26 . . 1 73 . . 13 Core Hits 67 | . 19 9 6 . . 1 28 . 2 2 Critical Kills . | . . . . . . . . . . . Critical Parts Destroyed 2 | . . . . . . . . . . 2 Critical Strikes 7 | . 1 2 . . . . 2 . . 2 Blast 5 | . 1 2 . . . . 2 . . . Smash 2 | . . . . . . . . . . 2 Melee Attacks 15 | . . . . . . . . . . 15 Impact 15 | . . . . . . . . . . 15 Slashing . | . . . . . . . . . . . Piercing . | . . . . . . . . . . . Sneak Attacks 4 | . . . . . . . . . . 4 Combat Hostiles . | . . . . . . . . . . . Follow-up Attacks 1 | . . . . . . . . . . 1 Damage Inflicted 3431 | . 493 430 423 . . 17 1555 . 77 436 Guns 1889 | . 379 198 196 . . 17 1099 . . . Cannons 818 | . 109 219 227 . . . 263 . . . Explosions 265 | . . . . . . . 190 . 75 . Melee 436 | . . . . . . . . . . 436 Ramming 23 | . 5 13 . . . . 3 . 2 . Kinetic 2707 | . 488 417 423 . . 17 1362 . . . Thermal . | . . . . . . . . . . . Explosive 265 | . . . . . . . 190 . 75 . Electromagnetic . | . . . . . . . . . . . Impact 436 | . . . . . . . . . . 436 Slashing . | . . . . . . . . . . . Piercing . | . . . . . . . . . . . Highest Corruption . | . . . . . . . . . . . Average Corruption . | . . . . . . . . . . . Corruption Purged . | . . . . . . . . . . . Corruption Blocked . | . . . . . . . . . . . Overload Shots . | . . . . . . . . . . . Overflow Damage 134 | . . . . . . . 12 . . 122 Projectiles 12 | . . . . . . . 12 . . . Explosions . | . . . . . . . . . . . Melee 122 | . . . . . . . . . . 122 Knockbacks 14 | . 3 6 . . . . 2 . . 3 Impact 3 | . . . . . . . . . . 3 Kinetic 11 | . 3 6 . . . . 2 . . . Secondary . | . . . . . . . . . . . Self-Inflicted Damage 6 | . . . . . . . 6 . . . Shots 1 | . . . . . . . 1 . . . Rammed . | . . . . . . . . . . . Targets Rammed 6 | . 2 1 . . . . 1 . 2 . Kicked 6 | . 2 1 . . . . 1 . 2 . Crushed . | . . . . . . . . . . . Highest Temperature 126 | . 4 126 123 . . 18 90 . . . Average Temperature 31 | . 2 39 38 . . 13 26 . . . Received Heat Transfer 1428 | . 105 198 99 . . . 882 . 144 . Siege Activations . | . . . . . . . . . . . Robots Corrupted . | . . . . . . . . . . . Combat Hostiles . | . . . . . . . . . . . Parts Fried 5 | . . . . . . . . . . 5 Impact Corruptions 7 | . . . . . . . . . . 7 Robots Melted . | . . . . . . . . . . . Combat Hostiles . | . . . . . . . . . . . Parts Melted . | . . . . . . . . . . . Heat Transferred . | . . . . . . . . . . . Parts Sabotaged . | . . . . . . . . . . . Parts Stolen . | . . . . . . . . . . . Parts Stripped . | . . . . . . . . . . . Power Chain Reactions . | . . . . . . . . . . . Alert | -11 -10 -10 -9 -9 -9 -8 -8 -7 -7 -6 ------- Run | Yrd Mat Min Mat Min Exi Min Mat Fac DSF Fac Peak Influence 322 | . 322 236 126 11 . 5 249 24 68 116 Initial 84 | . . 84 13 11 . . 1 24 20 30 Average 99 | . 162 148 55 11 . 4 104 24 25 49 Maximum Alert Level 1 | . 1 1 . . . . 1 . . . Low Security (%) 86 | 100 59 90 100 100 . 100 85 100 100 100 Level 1 13 | . 40 9 . . . . 14 . . . Level 2 . | . . . . . . . . . . . Level 3 . | . . . . . . . . . . . Level 4 . | . . . . . . . . . . . Level 5 . | . . . . . . . . . . . High Security . | . . . . . . . . . . . Max Security . | . . . . . . . . . . . Squads Dispatched 12 | . 2 . 1 . . . 2 . 1 6 Investigation 1 | . 1 . . . . . . . . . Extermination . | . . . . . . . . . . . Reinforcement 11 | . 1 . 1 . . . 2 . 1 6 Assault . | . . . . . . . . . . . Garrison . | . . . . . . . . . . . Intercept . | . . . . . . . . . . . Searches Triggered . | . . . . . . . . . . . Construction Impeded 1 | . . . . . . . 1 . . . Haulers Reinforced . | . . . . . . . . . . . Active Scanning Responses . | . . . . . . . . . . . Cargo Convoy Interrupts . | . . . . . . . . . . . Stealth | -11 -10 -10 -9 -9 -9 -8 -8 -7 -7 -6 --------- Run | Yrd Mat Min Mat Min Exi Min Mat Fac DSF Fac Distress Signals 5 | . 2 . 2 . . . 1 . . . Communications Jammed . | . . . . . . . . . . . Distress Signals . | . . . . . . . . . . . Times Spotted 85 | . 25 6 12 . . . 22 . 4 16 Peak Tracking Total 8 | . 5 4 3 . . . 8 . 3 5 Tactical Retreats 12 | . 3 2 . . . . 3 . 2 2 Traps | -11 -10 -10 -9 -9 -9 -8 -8 -7 -7 -6 ------- Run | Yrd Mat Min Mat Min Exi Min Mat Fac DSF Fac Traps Triggered 3 | . 2 . . . . . . . 1 . Indirectly . | . . . . . . . . . . . Trap Hack Attempts . | . . . . . . . . . . . Triggered . | . . . . . . . . . . . Disarmed . | . . . . . . . . . . . Reprogrammed . | . . . . . . . . . . . Reused . | . . . . . . . . . . . Traps Extracted . | . . . . . . . . . . . Installed . | . . . . . . . . . . . Triggered . | . . . . . . . . . . . Machines | -11 -10 -10 -9 -9 -9 -8 -8 -7 -7 -6 ---------- Run | Yrd Mat Min Mat Min Exi Min Mat Fac DSF Fac Machines Disabled 3 | . 2 . . . . . 1 . . . Max in Single Turn 1 | . 1 . . . . . 1 . . . Machines Repaired . | . . . . . . . . . . . Machines Dismantled . | . . . . . . . . . . . Machines Sabotaged . | . . . . . . . . . . . Overloaded Fab Kills . | . . . . . . . . . . . Hacking | -11 -10 -10 -9 -9 -9 -8 -8 -7 -7 -6 --------- Run | Yrd Mat Min Mat Min Exi Min Mat Fac DSF Fac Machines Accessed 3 | . . . . . 1 . . 1 . 1 Terminals 2 | . . . . . . . . 1 . 1 Fabricators . | . . . . . . . . . . . Repair Stations . | . . . . . . . . . . . Recycling Units . | . . . . . . . . . . . Scanalyzers . | . . . . . . . . . . . Garrison Access . | . . . . . . . . . . . Total Hacks 6 | . . . . . 1 . . 3 . 2 Successful 3 | . . . . . 1 . . 1 . 1 Failed 3 | . . . . . . . . 2 . 1 Catastrophic . | . . . . . . . . . . . Database Lockouts . | . . . . . . . . . . . Manual 1 | . . . . . 1 . . . . . Terminals 5 | . . . . . . . . 3 . 2 Fabricators . | . . . . . . . . . . . Repair Stations . | . . . . . . . . . . . Recycling Units . | . . . . . . . . . . . Scanalyzers . | . . . . . . . . . . . Garrison Access . | . . . . . . . . . . . Terminal Hacks 3 | . . . . . 1 . . 1 . 1 Open DSF 2 | . . . . . . . . 1 . 1 Derelict Proto ID Bank 1 | . . . . . 1 . . . . . Fabricator Hacks . | . . . . . . . . . . . Repair Station Hacks . | . . . . . . . . . . . Recycling Unit Hacks . | . . . . . . . . . . . Scanalyzer . | . . . . . . . . . . . Garrison Access Hacks . | . . . . . . . . . . . Unauthorized Hacks . | . . . . . . . . . . . Terminals . | . . . . . . . . . . . Fabricators . | . . . . . . . . . . . Repair Stations . | . . . . . . . . . . . Recycling Units . | . . . . . . . . . . . Scanalyzers . | . . . . . . . . . . . Garrison Access . | . . . . . . . . . . . Data Cores Recovered . | . . . . . . . . . . . Used . | . . . . . . . . . . . Hacking Detections 1 | . . . . . . . . . . 1 Full Trace Events . | . . . . . . . . . . . Feedback Events . | . . . . . . . . . . . Feedback Blocked . | . . . . . . . . . . . Robot Schematics Acquired . | . . . . . . . . . . . Robots Built . | . . . . . . . . . . . Authchips . | . . . . . . . . . . . Time . | . . . . . . . . . . . Total Robot Build Rating . | . . . . . . . . . . . Part Schematics Acquired . | . . . . . . . . . . . Parts Built . | . . . . . . . . . . . Authchips . | . . . . . . . . . . . Time . | . . . . . . . . . . . Total Part Build Rating . | . . . . . . . . . . . Parts Repaired . | . . . . . . . . . . . Time . | . . . . . . . . . . . Parts Recycled . | . . . . . . . . . . . Recycled Matter . | . . . . . . . . . . . Retrieved Matter . | . . . . . . . . . . . Retrieved Components . | . . . . . . . . . . . Parts Scanalyzed . | . . . . . . . . . . . Part Schematics Acquired . | . . . . . . . . . . . Parts Damaged . | . . . . . . . . . . . Bothacking | -11 -10 -10 -9 -9 -9 -8 -8 -7 -7 -6 ------------ Run | Yrd Mat Min Mat Min Exi Min Mat Fac DSF Fac Used RIF Installer . | . . . . . . . . . . . Robots Hacked . | . . . . . . . . . . . Non-combat . | . . . . . . . . . . . Combat . | . . . . . . . . . . . Robot Hacks Applied . | . . . . . . . . . . . Relay Couplers Released . | . . . . . . . . . . . Fabnet Peak Effective % . | . . . . . . . . . . . Robots Rewired . | . . . . . . . . . . . Allies Hacked . | . . . . . . . . . . . Hacks Repelled . | . . . . . . . . . . . Allies | -11 -10 -10 -9 -9 -9 -8 -8 -7 -7 -6 -------- Run | Yrd Mat Min Mat Min Exi Min Mat Fac DSF Fac Total Allies 2 | . . . . 2 . . . . . . Largest Group 2 | . . . . 2 2 . . . . . Highest-Rated Group 53 | . . . . 53 53 . . . . . Highest-Rated Ally 31 | . . . . 31 31 . . . . . Total Orders . | . . . . . . . . . . . Ally Attacks . | . . . . . . . . . . . Total Damage . | . . . . . . . . . . . Kills . | . . . . . . . . . . . Allies Corrupted . | . . . . . . . . . . . Allies Melted . | . . . . . . . . . . . Intel | -11 -10 -10 -9 -9 -9 -8 -8 -7 -7 -6 ------- Run | Yrd Mat Min Mat Min Exi Min Mat Fac DSF Fac Robot Analysis Total . | . . . . . . . . . . . Derelict Logs Recovered 1 | . . 1 . . . . . . . . Drone Launches . | . . . . . . . . . . . Drone Recoveries . | . . . . . . . . . . . Exploration | -11 -10 -10 -9 -9 -9 -8 -8 -7 -7 -6 ------------- Run | Yrd Mat Min Mat Min Exi Min Mat Fac DSF Fac Turns Passed 3597 | 2 710 482 460 89 249 81 837 55 115 517 Spaces Moved 2309 | 1 451 336 301 75 208 40 489 36 69 303 Core 174 | . . . . . . . . . 32 142 Treads . | . . . . . . . . . . . Legs 2135 | 1 451 336 301 75 208 40 489 36 37 161 Wheels . | . . . . . . . . . . . Hover . | . . . . . . . . . . . Flight . | . . . . . . . . . . . Fastest Speed 50 | 120 120 120 120 120 120 120 120 120 50 50 Average Speed 117 | 120 120 120 120 120 120 120 122 153 122 94 Slowest Speed 250 | 120 120 120 120 120 120 120 195 190 200 250 Overloaded Moves . | . . . . . . . . . . . Propulsion Burnouts . | . . . . . . . . . . . Robots Hopped . | . . . . . . . . . . . Cave-ins Triggered . | . . . . . . . . . . . Exploration Rate (%) 37 | 2 72 74 44 24 66 9 46 2 66 11 Regions Visited 10 Branch Regions 4 Pre-discovered Areas . | . . . . . . . . . . . Known Exits Taken 2 | . . . . . . 1 . 1 . . Unknown Exits Taken 7 | 1 1 1 1 1 1 . 1 . . . Scrap Searched 1 | . . 1 . . . . . . . . Spaces Dug 1 | . . . . . . . . . . 1 Terrain Destroyed 22 | . . . . . . . 13 . 8 1 Melee 1 | . . . . . . . . . . 1 Projectile 4 | . . . . . . . 4 . . . AOE 17 | . . . . . . . 9 . 8 . Terrain Rammed . | . . . . . . . . . . . Walls Destroyed . | . . . . . . . . . . . Machines Disabled . | . . . . . . . . . . . Actions | -11 -10 -10 -9 -9 -9 -8 -8 -7 -7 -6 --------- Run | Yrd Mat Min Mat Min Exi Min Mat Fac DSF Fac Total 2956 | 2 563 377 371 74 207 71 649 36 97 509 Wait 415 | . 65 11 31 . . 31 88 . 8 181 Move 2299 | . 450 335 300 74 207 39 488 35 68 303 Hop . | . . . . . . . . . . . Pick Up 23 | . 7 2 6 . . . 5 . 2 1 Fast Attach 24 | . 2 . 4 . . . 5 . 5 8 Attach 19 | . . 2 1 . . . 10 1 2 3 Detach 6 | . . . 1 . . . 2 . 3 . Swap 11 | . 2 3 2 . . . 4 . . . Drop 22 | 2 6 3 8 . . . 2 . 1 . Fire 113 | . 29 20 18 . . 1 44 . 1 . Melee 13 | . . . . . . . . . . 13 Ram . | . . . . . . . . . . . Kick 6 | . 2 1 . . . . 1 . 2 . Crush . | . . . . . . . . . . . Escape Stasis 5 | . . . . . . . . . 5 . Rewire . | . . . . . . . . . . . Trap . | . . . . . . . . . . . Miscellaneous . | . . . . . . . . . . . Route ------- -11/Scrapyard -10/Materials (discovered 3 exits: [*Mat] / [*Min x2]) -10/Mines -9/Materials (discovered 2 exits: *Mat / [*Min]) -9/Mines -9/Exiles (discovered 2 exits: [*Min x2]) -8/Mines -8/Materials -7/Factory -7/DSF -6/Factory History --------- Turn | Location | Event 3 | -11/Scrapyard | Discovered new exit (range 0) 3 | -11/Scrapyard | Entered Materials 3 | -10/Materials | Discovered new exit (range 15) 106 | -10/Materials | Discovered new exit (range 10) 313 | -10/Materials | Build established: Mutant 608 | -10/Materials | Discovered new exit (range 16) 713 | -10/Materials | Entered Mines 716 | -10/Mines | Joined a pair of Derelicts in attacking an 0b10 outpost 893 | -10/Mines | Learned location of 1 exit from Materials 971 | -10/Mines | Found a damaged Exp. Sensor Array with a note attached 1068 | -10/Mines | Core integrity fell below 50% 1184 | -10/Mines | Discovered new exit (range 10) 1195 | -10/Mines | Entered Materials 1195 | -9/Materials | Evolved 2 slots: Propulsion x1, Utility x1 1196 | -9/Materials | Identified exit to Materials 1611 | -9/Materials | Discovered new exit (range 12) 1655 | -9/Materials | Entered Mines 1690 | -9/Mines | Assembled infested the area 1695 | -9/Mines | Assisted by a Guerilla fighting off Assembled 1733 | -9/Mines | Deemed a non-threat by the Exiles lab entrance 1733 | -9/Mines | Discovered new exit (range 5) 1744 | -9/Mines | Entered Exiles 1744 | -9/Exiles | Accompanied by 2 allies 1760 | -9/Exiles | Discovered new exit (range 16) 1774 | -9/Exiles | Led the pair of lost Derelicts to a safe place 1777 | -9/Exiles | Met 8R-AWN 1794 | -9/Exiles | Met EX-HEX 1828 | -9/Exiles | Met EX-BIN 1846 | -9/Exiles | Aligned with FarCom system 1848 | -9/Exiles | Given EX-Vault access code 1875 | -9/Exiles | Opened EX-Vault 1902 | -9/Exiles | Warned to stay clear of 0b10 Research branches 1933 | -9/Exiles | Met EX-DEC 1980 | -9/Exiles | Discovered new exit (range 14) 1993 | -9/Exiles | Entered Mines 2066 | -8/Mines | Discovered exit to Materials (range 6) 2074 | -8/Mines | Entered Materials 2074 | -8/Materials | Evolved 2 slots: Propulsion x1, Weapon x1 2555 | -8/Materials | Build established: Skirmisher 2607 | -8/Materials | Discovered new exit (range 3) 2750 | -8/Materials | Lost 6 parts (1p3n2w) 2910 | -8/Materials | Core integrity fell below 50% 2911 | -8/Materials | Entered Factory 2911 | -7/Factory | Evolved 2 slots: Power x1, Utility x1 2924 | -7/Factory | Lost 10 parts (2p4n1u3w) 2966 | -7/Factory | Identified exit to DSF 2966 | -7/Factory | Entered DSF 3001 | -7/DSF | Additional patrols routed to DSF 3026 | -7/DSF | Discovered new exit (range 15) 3081 | -7/DSF | Entered Factory 3081 | -6/Factory | Evolved 2 slots: Propulsion x1, Weapon x1 3140 | -6/Factory | Build established: Mutant 3483 | -6/Factory | Core integrity fell below 50% 3501 | -6/Factory | Released all parts (9) 3579 | -6/Factory | Core integrity fell below 20% 3598 | -6/Factory | Destroyed by S-27 Virus with Autogun Last Messages --------------- 03506_ R-10 Processor collects Med. Storage Unit. 03507_ Connecting with DSF Access... 03507_ Current location identified: Factory 03509_ ALERT: Cargo convoy en route, clear transfer corridor. 03510_ K-01 Serf collects debris. 03514_ Acquired Microactuators. 03538_ ALERT: Suspicious intruders detected, dispatching Cutter reinforcements to area. 03564_ Acquired Adv. Melee Analysis Suite. 03579_ O-16 Technician: "IFF HANDSHAKE FAILED. SECURING TERMINAL." 03581_ O-16 Technician uses terminal to summon reinforcements. 03581_ ALERT: Hostiles spotted, dispatching reinforcements to Terminal F004. 03581_ O-16 Technician locks terminal. 03582_ Acquired Mic. Nuclear Core. 03587_ Acquired Force Field. Map ----- +----------------------------------------------------+ | ????????????????#### #??# | | ????????????????# #??# | | ????????????????# #??# " " | | ????????????????# #??# " " | | ?????????#??????# #??# " " | | ?????????+ ???# #??# " " | | ?????????# ???# #??# " " | | ?????????# ?# #??# " " | | ?????????# ?# #??# " " | | ?????????# ?# xs #??? " " "" | | ?????????# ## #??? " " "F | | ?????????# ## #??? """ | | ?????????# ## #???######### | | ?????????# ## #???????????? | | ?????????# ##ss #???????????? | | ?????????# #???????????? | | ?????????# ########????? | | ?????????# "T" ????? | | ???##+#### o ^ ???? | | ???# *!! ????? | | ???# !! ##+####?????? | | ???# ! *! #???????????? | | ???# !! #???????????? | | ???# !! #???????????? | | ???# ##### +???????????? | | ???# @ #???? ###???????????? | | ???#########/##???? #?????????????? | | ??????????? ????? ###?????????????? | | ???????????] ??????#???????????????? | | ?????????? ?????????????????????? | | ??????????"""""?????????????????????? | | ????????? """"""????????????????????? | | ????????? """"""????????????????????? | | ????????# """""""???????????????????? | | ????????Y???????????????????????????? | | ????????????????????????????????????? | | | | | | | | | | | | | | | | | | | | | | | | | | | | | +----------------------------------------------------+ Best States ------------- Heat Dissipation 37 Energy Generation 15 Energy Capacity 265 Matter Stores 300 Matter Capacity 300 Sight Range 20 Terrain Scan Density 10 Armor Coverage 150 Melee Speed Boost 20 Evasion (%) 55 Targeting Accuracy 6 Melee Accuracy 8 Recoil Reduction 4 Item Schematics ----------------- None Robot Schematics ------------------ None Fabricated ------------ Nothing Alien Tech Used ----------------- None Achievements -------------- None Challenges ------------ None Game ------ Seed TargetElectronReplicator Manual? 0 Play Time 00:40:08 Cumulative 87.3 hours Start 2024.04.02 @ 10:01:09 End 2024.04.02 @ 17:56:50 Sessions 3 Manual Loads 0 Difficulty Rogue Special Mode None Game No. 127 Rogue 127 Adventurer 0 Explorer 0 Win Type - Total 1 Types 1/0/0/0/0/0/0/0/0 Lore% 42 Gallery% 46 Achievement% 41 Wizard Run 0 Options --------- Layout 1 ASCII 0 Keyboard 1 Movement Vi Keybinds 1 Fullscreen 1 Font 32/SmallcapsGlow Map View 50x35 Zoom Use 0% Tactical HUD 1 Map Filters NONE Filters NONE Steam 1 RUN: 1a14c3cd-fe9b-4a7e-b7d8-4ce90a58dcf6